Cogmind - Beta 10.2 @@@ ROGUE MODE // 2020.12.16 @ 12:23:59 Player: CrossedViper Result: Destroyed by 8R-AWN with 8R-AWN's Boregun Performance ------------- Evolutions (1) 500 Regions Visited (5) 1000 Robots Destroyed (73) 365 Value Destroyed (1734) 1734 Prototype IDs (27) 540 Alien Tech Used (0) 0 Bonus (-395) -395 TOTAL SCORE: 3744 Bonus ------- High Alert Combat Kills 121 Follower Combat Kills 113 Aligned with FarCom 300 Friendly Fire -929 Cogmind --------- Core Integrity 0/400 Matter 201/300 Energy 95/100 System Corruption 0% Temperature Cool (0) Movement Walking (130) Ox1 Location -9/Exiles Parts ------- > --- POWER (1) -------- (None) > --- PROPULSION (2) --- Light Treads Potential Leg > --- UTILITY (4) ------ Large Storage Unit Large Storage Unit PSU Rigger > --- WEAPON (2) ------- Katana Makeshift Axe > --- INVENTORY (16) --- Improved Aluminum Leg Potential Leg Large Battery (300) Large Matter Pod (60) Improved Medium Laser Improved Assault Rifle Rocket Launcher Rocket Launcher Mining Claw Peak State ------------ > --- POWER ------------ (None) > --- PROPULSION ------- Light Treads Potential Leg > --- UTILITY ---------- Large Storage Unit Large Storage Unit PSU Rigger > --- WEAPON ----------- Katana Makeshift Axe > --- INVENTORY -------- Improved Aluminum Leg Potential Leg Large Battery Large Matter Pod Improved Medium Laser Improved Assault Rifle Rocket Launcher Rocket Launcher Mining Claw [Rating: 30] Favorites ----------- Power Ion Engine Engine Ion Engine Propulsion Light Treads Treads Light Treads Leg Aluminum Leg Utility Light Armor Plating Device Remote Shield Storage Small Storage Unit Processor Seismic Analyzer Protection Light Armor Plating Weapon Assault Rifle Energy Gun Improved Medium Laser Ballistic Gun Assault Rifle Ballistic Cannon Light Cannon Launcher Mini Grenade Launcher Slashing Weapon Makeshift Axe Build | -11 -10 -10 -9 -9 -9 ------- Run | Scr Mat Min Mat Min Exi Slots Evolved 2 | . . . 2 . . Power . | . . . . . . Propulsion . | . . . . . . Utility 2 | . . . 2 . . Weapon . | . . . . . . Parts Attached 72 | . 7 7 39 2 17 Power 5 | . . 1 3 1 . Engine 5 | . . 1 3 1 . Core . | . . . . . . Reactor . | . . . . . . Propulsion 17 | . 2 2 6 1 6 Treads 13 | . . 2 6 1 4 Leg 4 | . 2 . . . 2 Wheel . | . . . . . . Hover . | . . . . . . Flight . | . . . . . . Utility 24 | . 1 2 14 . 7 Device 5 | . . . 2 . 3 Storage 5 | . . . 2 . 3 Processor 1 | . 1 . . . . Hackware . | . . . . . . Protection 13 | . . 2 10 . 1 Artifact . | . . . . . . Weapon 26 | . 4 2 16 . 4 Energy Gun 6 | . . . 6 . . Energy Cannon . | . . . . . . Ballistic Gun 9 | . 4 1 4 . . Ballistic Cannon 1 | . . 1 . . . Launcher 6 | . . . 4 . 2 Special Weapon . | . . . . . . Impact Weapon . | . . . . . . Slashing Weapon 4 | . . . 2 . 2 Piercing Weapon . | . . . . . . Special Melee Weapon . | . . . . . . Unidentified Prototypes 4 | . . . 4 . . Parts Lost 12 | . . . 7 . 5 Power 2 | . . . 1 . 1 Propulsion 2 | . . . . . 2 Utility 6 | . . . 4 . 2 Weapon 2 | . . . 2 . . Highest Loss Streak 5 | . . . 4 . 5 Average Slot Usage (%) 95 | . 96 100 97 100 82 Engine 11 | . 14 14 10 11 10 Treads 18 | . . 11 22 22 21 Leg 5 | . 28 16 . . . Device 5 | . . . 3 11 11 Storage 16 | . 14 14 12 22 22 Processor 2 | . 10 7 . . . Protection 13 | . . 6 25 11 10 Energy Gun 5 | . 2 . 6 11 2 Ballistic Gun 13 | . 25 26 13 11 2 Naked Turns . | . . . . . . Heaviest Build 50 | 11 12 17 33 33 50 Greatest Support 43 | 20 20 40 43 43 43 Greatest Overweight (x) 2 | . . . . . 2 Average Overweight (x) . | . . . . . . Largest Inventory Capacity 16 | 6 6 6 8 8 16 Average Capacity 7 | 6 6 6 6 8 13 Most Carried 14 | 6 6 6 8 8 14 Average Carried 7 | 6 5 5 6 8 8 Final Capacity 16 | 6 6 6 8 8 16 Final Carried 9 | 6 6 6 8 8 9 Class Distribution -------------------- 54% | Mutant 45% | Scavenger-Mutant Dominant Class ---------------- Mutant | -10/Materials Mutant | -10/Mines Mutant | -9/Materials Scavenger-Mutant | -9/Mines Scavenger-Mutant | -9/Exiles Resources | -11 -10 -10 -9 -9 -9 ----------- Run | Scr Mat Min Mat Min Exi Matter Collected 1289 | 200 54 234 703 78 20 Remotely . | . . . . . . Salvage Created 2578 | . 436 162 1598 372 10 Parts 141 | . 19 5 106 11 . Haulers Intercepted 5 | . 1 . 4 . . Recyclers Shooed 2 | . . . 1 1 . Parts Field Recycled . | . . . . . . Retrieved Matter . | . . . . . . Parts Self-Destructed . | . . . . . . Prevented . | . . . . . . Kills | -11 -10 -10 -9 -9 -9 ------- Run | Scr Mat Min Mat Min Exi Combat Hostiles Destroyed 49 | . 12 2 32 2 1 Melee 2 | . . . 2 . . Guns 30 | . 12 1 15 2 . Cannons 1 | . . 1 . . . AOE 16 | . . . 15 . 1 Classes Destroyed 12 | . 4 1 5 1 1 Worker 5 | . . . 3 2 . Builder 4 | . . . 2 2 . Tunneler 1 | . . . . 1 . Hauler 5 | . 1 . 4 . . Recycler 6 | . 1 1 2 2 . Watcher 4 | . . . 4 . . Swarmer 13 | . 6 . 7 . . Grunt 21 | . 6 . 13 2 . Duelist 3 | . . . 3 . . Protector 1 | . . . 1 . . Sentry 10 | . . 2 8 . . Assembled 6 | . . . . . 6 Best Kill Streak 8 | . 5 3 8 2 1 Combat Bots Only 7 | . 4 2 7 2 1 Max Kills in Single Turn 5 | . 2 1 3 1 5 Gunslinging 1 | . 1 . . . . Exploded 3 | . . . 3 . 1 Melee 1 | . . . 1 . . Uniques/NPCs Destroyed . | . . . . . . Combat | -11 -10 -10 -9 -9 -9 -------- Run | Scr Mat Min Mat Min Exi Damage Taken 3263 | . 467 88 1733 37 938 Core 524 | . 112 . 196 . 216 Absorbed by Shields 57 | . . . 22 11 24 Core Remaining (%) 77 | 100 . 55 . . . Volleys Fired 167 | . 51 9 90 15 2 Largest 2 | . 2 2 2 2 2 Hottest 100 | . 60 55 100 79 66 Shots Fired 312 | . 102 18 158 30 4 Gun 291 | . 102 12 147 30 . Cannon 6 | . . 6 . . . Launcher 15 | . . . 11 . 4 Special . | . . . . . . Kinetic 204 | . 90 18 81 15 . Thermal 36 | . 12 . 9 15 . Explosive 15 | . . . 11 . 4 Electromagnetic 57 | . . . 57 . . Robot Hit Streak 22 | . 16 8 21 22 2 Robot Miss Streak 6 | . 5 2 6 2 . Penetration Max . | . . . . . . Secondary Targets 4 | . 1 . 2 1 . Max Gunslinging Chain 1 | . 1 . 1 1 . Shots Hit Robots 255 | . 71 11 121 20 32 Core Hits 134 | . 26 5 77 11 15 Critical Hits 4 | . 1 . . . 3 Critical Kills . | . . . . . . Critical Parts Destroyed 2 | . 1 . . . 1 Melee Attacks 61 | . . . 13 . 48 Impact . | . . . . . . Slashing 61 | . . . 13 . 48 Piercing . | . . . . . . Sneak Attacks 4 | . . . 4 . . Combat Hostiles . | . . . . . . Follow-up Attacks 7 | . . . . . 7 Damage Inflicted 6595 | . 590 211 3902 324 1568 Guns 2686 | . 590 121 1651 324 . Cannons 90 | . . 90 . . . Explosions 2170 | . . . 1700 . 470 Melee 1649 | . . . 551 . 1098 Ramming . | . . . . . . Kinetic 1541 | . 509 211 717 104 . Thermal 1254 | . 81 . 953 220 . Explosive 1328 | . . . 858 . 470 Electromagnetic 823 | . . . 823 . . Impact . | . . . . . . Slashing 1649 | . . . 551 . 1098 Piercing . | . . . . . . Highest Corruption . | . . . . . . Average Corruption . | . . . . . . Corruption Purged . | . . . . . . Overload Shots . | . . . . . . Overflow Damage 292 | . . . 284 . 8 Projectiles . | . . . . . . Explosions 157 | . . . 153 . 4 Melee 135 | . . . 131 . 4 Knockbacks . | . . . . . . Impact . | . . . . . . Kinetic . | . . . . . . Secondary . | . . . . . . Self-Inflicted Damage 332 | . . . 332 . . Shots 9 | . . . 9 . . Rammed . | . . . . . . Targets Rammed . | . . . . . . Kicked . | . . . . . . Crushed . | . . . . . . Highest Temperature 385 | . 60 37 385 38 12 Average Temperature 77 | . 20 18 110 14 7 Received Heat Transfer 709 | . 150 36 505 18 . Effects 3 | . . . 3 . . Interference 1 | . . . 1 . . Damage (minor) 2 | . . . 2 . . Siege Activations . | . . . . . . Robots Corrupted . | . . . . . . Combat Hostiles . | . . . . . . Parts Fried 3 | . . . 3 . . Impact Corruptions . | . . . . . . Robots Melted . | . . . . . . Combat Hostiles . | . . . . . . Parts Melted 2 | . 1 . . 1 . Heat Transferred 1797 | . 175 . 1141 481 . Parts Sabotaged . | . . . . . . Parts Stolen . | . . . . . . Parts Stripped . | . . . . . . Power Chain Reactions 8 | . . . 8 . . Missiles Intercepted . | . . . . . . Alert | -11 -10 -10 -9 -9 -9 ------- Run | Scr Mat Min Mat Min Exi Peak Influence 749 | . 379 134 749 355 . Initial 259 | . . 99 9 259 . Average 252 | . 194 69 352 242 . Maximum Alert Level 3 | . 1 . 3 1 . Low Security (%) 40 | 100 50 100 23 25 . Level 1 43 | . 50 . 40 74 . Level 2 9 | . . . 21 . . Level 3 6 | . . . 14 . . Level 4 . | . . . . . . Level 5 . | . . . . . . High Security . | . . . . . . Max Security . | . . . . . . Squads Dispatched 9 | . 5 . 4 . . Investigation 3 | . 2 . 1 . . Extermination . | . . . . . . Reinforcement 4 | . 3 . 1 . . Assault 2 | . . . 2 . . Garrison . | . . . . . . Intercept . | . . . . . . Construction Impeded . | . . . . . . Haulers Reinforced . | . . . . . . Stealth | -11 -10 -10 -9 -9 -9 --------- Run | Scr Mat Min Mat Min Exi Distress Signals 7 | . 1 . 6 . . Communications Jammed . | . . . . . . Distress Signals . | . . . . . . Times Spotted 97 | . 24 2 61 7 3 Peak Tracking Total 6 | . 5 1 6 3 4 Tactical Retreats 6 | . 4 . 2 . . Traps | -11 -10 -10 -9 -9 -9 ------- Run | Scr Mat Min Mat Min Exi Traps Triggered 3 | . 2 . 1 . . Indirectly . | . . . . . . Trap Hack Attempts . | . . . . . . Triggered . | . . . . . . Disarmed . | . . . . . . Reprogrammed . | . . . . . . Reused . | . . . . . . Traps Extracted . | . . . . . . Installed . | . . . . . . Triggered 1 | . . . 1 . . Machines | -11 -10 -10 -9 -9 -9 ---------- Run | Scr Mat Min Mat Min Exi Machines Disabled 11 | . . . 8 . 3 Max in Single Turn 6 | . . . 6 . 3 Machines Sabotaged . | . . . . . . Garrisons Compromised . | . . . . . . Overloaded Fab Kills . | . . . . . . Fab Network Shutdowns . | . . . . . . Hacking | -11 -10 -10 -9 -9 -9 --------- Run | Scr Mat Min Mat Min Exi Machines Accessed 6 | . 1 . 4 . 1 Terminals 5 | . 1 . 4 . . Fabricators . | . . . . . . Repair Stations . | . . . . . . Recycling Units . | . . . . . . Scanalyzers . | . . . . . . Garrison Access . | . . . . . . Total Hacks 15 | . 2 . 12 . 1 Successful 8 | . 2 . 5 . 1 Failed 7 | . . . 7 . . Catastrophic 2 | . . . 2 . . Database Lockouts . | . . . . . . Manual 12 | . . . 11 . 1 Terminals 14 | . 2 . 12 . . Fabricators . | . . . . . . Repair Stations . | . . . . . . Recycling Units . | . . . . . . Scanalyzers . | . . . . . . Garrison Access . | . . . . . . Terminal Hacks 5 | . 2 . 2 . 1 Branch Access Points 2 | . 1 . 1 . . Alert Level 1 | . . . 1 . . Locate Traps 1 | . 1 . . . . EX-Prototype ID Bank 1 | . . . . . 1 Fabricator Hacks . | . . . . . . Repair Station Hacks . | . . . . . . Recycling Unit Hacks . | . . . . . . Scanalyzer . | . . . . . . Garrison Access Hacks . | . . . . . . Unauthorized Hacks 3 | . . . 3 . . Terminals 3 | . . . 3 . . Track 1 | . . . 1 . . Botnet 2 | . . . 2 . . Fabricators . | . . . . . . Repair Stations . | . . . . . . Recycling Units . | . . . . . . Scanalyzers . | . . . . . . Garrison Access . | . . . . . . Data Cores Recovered . | . . . . . . Used . | . . . . . . Hacking Detections 5 | . 1 . 4 . . Full Trace Events . | . . . . . . Feedback Events . | . . . . . . Feedback Blocked . | . . . . . . Robot Schematics Acquired . | . . . . . . Robots Built . | . . . . . . Matter . | . . . . . . Time . | . . . . . . Total Robot Build Rating . | . . . . . . Part Schematics Acquired . | . . . . . . Parts Built . | . . . . . . Matter . | . . . . . . Time . | . . . . . . Total Part Build Rating . | . . . . . . Parts Repaired . | . . . . . . Time . | . . . . . . Parts Recycled . | . . . . . . Recycled Matter . | . . . . . . Retrieved Matter . | . . . . . . Retrieved Components . | . . . . . . Parts Scanalyzed . | . . . . . . Part Schematics Acquired . | . . . . . . Parts Damaged . | . . . . . . Bothacking | -11 -10 -10 -9 -9 -9 ------------ Run | Scr Mat Min Mat Min Exi Used RIF Installer . | . . . . . . Robots Hacked . | . . . . . . Non-combat . | . . . . . . Combat . | . . . . . . Robot Hacks Applied . | . . . . . . Relay Couplers Released . | . . . . . . Robots Rewired . | . . . . . . Allies Hacked . | . . . . . . Hacks Repelled . | . . . . . . Allies | -11 -10 -10 -9 -9 -9 -------- Run | Scr Mat Min Mat Min Exi Total Allies 3 | . . . . 3 . Largest Group 3 | . . . . 3 1 Highest-Rated Group 40 | . . . . 40 16 Highest-Rated Ally 16 | . . . . 16 16 Total Orders 1 | . . . . . 1 STAY 1 | . . . . . 1 Ally Attacks 37 | . . . . 32 5 Total Damage 420 | . . . . 354 66 Kills 8 | . . . . 7 1 Allies Corrupted . | . . . . . . Allies Melted . | . . . . . . Intel | -11 -10 -10 -9 -9 -9 ------- Run | Scr Mat Min Mat Min Exi Robot Analysis Total . | . . . . . . Derelict Logs Recovered 5 | . . 3 . 2 . Drone Launches . | . . . . . . Drone Recoveries . | . . . . . . Exploration | -11 -10 -10 -9 -9 -9 ------------- Run | Scr Mat Min Mat Min Exi Turns Passed 4721 | 2 498 658 1612 1055 896 Spaces Moved 2561 | 2 274 462 776 600 447 Core . | . . . . . . Treads 1968 | . . 145 776 600 447 Legs 593 | 2 274 317 . . . Wheels . | . . . . . . Hover . | . . . . . . Flight . | . . . . . . Fastest Speed 120 | 120 120 120 160 160 160 Average Speed 152 | 120 120 132 160 160 170 Slowest Speed 200 | 120 120 160 160 160 200 Overloaded Moves . | . . . . . . Propulsion Burnouts . | . . . . . . Robots Hopped . | . . . . . . Cave-ins Triggered . | . . . . . . Exploration Rate (%) 61 | 2 52 94 67 98 58 Regions Visited 5 Branch Regions 3 Pre-discovered Areas . | . . . . . . Known Exits Taken 2 | . 1 . 1 . . Unknown Exits Taken 3 | 1 . 1 . 1 . Scrap Searched 4 | . . 3 . 1 . Spaces Dug 3 | . . . 3 . . Terrain Destroyed 184 | . . . 155 . 29 Melee 3 | . . . 3 . . Projectile . | . . . . . . AOE 181 | . . . 152 . 29 Terrain Rammed . | . . . . . . Walls Destroyed . | . . . . . . Machines Disabled . | . . . . . . Actions | -11 -10 -10 -9 -9 -9 --------- Run | Scr Mat Min Mat Min Exi Total 3032 | 1 361 491 978 666 535 Wait 93 | . 20 . 25 48 . Move 2556 | 1 273 461 775 599 447 Hop . | . . . . . . Pick Up 35 | . 2 6 11 . 16 Fast Attach 20 | . 2 2 15 1 . Attach 12 | . . 1 3 . 8 Detach 1 | . . . 1 . . Swap 40 | . 5 4 21 1 9 Drop 54 | . 8 8 24 2 12 Fire 167 | . 51 9 90 15 2 Melee 54 | . . . 13 . 41 Ram . | . . . . . . Kick . | . . . . . . Crush . | . . . . . . Escape Stasis . | . . . . . . Rewire . | . . . . . . Trap . | . . . . . . Miscellaneous . | . . . . . . Route ------- -11/Scrapyard -10/Materials (discovered 3 exits: *Mat / *Min x2) -10/Mines -9/Materials (discovered 5 exits: [*Mat] / *Min x2 / *Sto x2) -9/Mines (discovered 4 exits: [*Mat x2] / *Exi / [*Zio]) -9/Exiles History --------- Turn | Location | Event 1 | -11/Scrapyard | Discovered new exit (range 1) 3 | -11/Scrapyard | Entered Materials 12 | -10/Materials | Identified exit to Mines 80 | -10/Materials | Discovered new exit (range 3) 317 | -10/Materials | Build established: Mutant 501 | -10/Materials | Entered Mines 596 | -10/Mines | Met a Derelict bent on vengeance 817 | -10/Mines | Learned Materials terminal intel 824 | -10/Mines | A weapon hastily lodged in a ceiling crevice suddenly fell to the ground 939 | -10/Mines | Learned 2 Materials zone layouts 972 | -10/Mines | Discovered new exit (range 14) 1159 | -10/Mines | Entered Materials 1159 | -9/Materials | Evolved 2 slots: Utility x2 1160 | -9/Materials | Identified exit to Storage 1162 | -9/Materials | Loaded intel: 11 terminal locations 1665 | -9/Materials | Discovered new exit (range 5) 2011 | -9/Materials | Discovered new exit (range 11) 2359 | -9/Materials | First assault squad dispatched 2403 | -9/Materials | Destroyed 7 combat bots 2447 | -9/Materials | Lost 4 parts (3u1w) 2548 | -9/Materials | Identified exit to Mines 2722 | -9/Materials | Build established: Scavenger-Mutant 2771 | -9/Materials | Entered Mines 2836 | -9/Mines | Learned Materials stockpile data 2966 | -9/Mines | Deemed a non-threat by the Exiles lab entrance 2966 | -9/Mines | Discovered new exit (range 5) 3048 | -9/Mines | Learned 8 Materials zone layouts 3081 | -9/Mines | Assisted by bots powering up and referring to "LRC-V3" 3211 | -9/Mines | Discovered new exit (range 9) 3288 | -9/Mines | Discovered new exit (range 5) 3378 | -9/Mines | A Derelict revealed a hidden shortcut to a safe place 3481 | -9/Mines | Received a Rocket Launcher from a helpful Derelict 3826 | -9/Mines | Entered Exiles 3826 | -9/Exiles | Accompanied by 1 ally 3975 | -9/Exiles | Met 8R-AWN 4004 | -9/Exiles | Met EX-HEX 4067 | -9/Exiles | Met EX-DEC 4246 | -9/Exiles | Met EX-BIN 4271 | -9/Exiles | Aligned with FarCom system 4273 | -9/Exiles | Given EX-Vault access code 4314 | -9/Exiles | Opened EX-Vault 4328 | -9/Exiles | Found Potential Leg 4344 | -9/Exiles | Found Potential Leg 4347 | -9/Exiles | Found PSU Rigger 4388 | -9/Exiles | Warned to stay clear of 0b10 Research branches 4618 | -9/Exiles | Attacked by the Exiles 4639 | -9/Exiles | Core integrity fell below 50% 4677 | -9/Exiles | Core integrity fell below 20% 4711 | -9/Exiles | Lost 5 parts (1p2n2u) 4722 | -9/Exiles | Destroyed by 8R-AWN with 8R-AWN's Boregun Last Messages --------------- 04673_ Penetrated by HV Slug. 04678_ Katana follow-up attack on 8R-AWN. 04680_ Destroyed Prototype Device. 04680_ Penetrated by HV Slug. 04680_ Critical hit. 04680_ Lgt. Treads destroyed. 04680_ Penetrated by HV Slug. 04691_ Destroyed Prototype Protection. 04692_ Penetrated by HV Slug. 04699_ Katana follow-up attack on 8R-AWN. 04701_ Penetrated by HV Slug. 04703_ Katana follow-up attack on 8R-AWN. 04705_ The unstable cave ceiling collapses. 04705_ Penetrated by HV Slug. 04705_ HV Slug penetrates Wall. 04705_ Penetrated by HV Slug. 04713_ Katana follow-up attack on 8R-AWN. 04718_ Penetrated by HV Slug. 04718_ HV Slug penetrates Earth. 04722_ Penetrated by HV Slug. Map ----- +----------------------------------------------------+ | """#???????????????????????????????????????? | | """#???????????????????????????????????????? | | """#???????????????????????????????????????? | | """"???????????????????????????????????????? | | """#???????????????????????????????????????? | | "X" """"???????????????????????????????????????? | | """ #???????????????????????????????????????? | | """""""""#???????????????????????????????????????? | | ##########???????????????????????????????????????? | | ?????????????????????????????????????????????????? | | ?????????????????????????????????????????????????? | | #????????????????????????????????????????????????? | | ##???###########?????????????????????????????????? | | #####"""""""""##????????????????????????????????? | | " """ """"##???????????????????????????????? | | "" " #???????????????????????????????# | | """#???????????????????????????????# | | " "#???????????#####???????????????# | | " "##?????????##" #??????????????## | | ""###???????#" #?????????????## | | """#??????##" ##????????????# | | "#????### ###????????### | | """ g ##???# ########## | | #""" ##### #""""## | | #"""" ;##g | | #"" @ ## | | ?""" #### | | ? " ;##"""""#### = | | # "## #######??#### | | ##;;##??#???????????##### | | ### ##???????????????????### | | " ##?# #??????????????????????# | | ? "" "#??# #??????????????????????? | | ?? " " ""# "##??# #??????????????????????? | | ????"" "?" #???? ???????????????????????? | | ?????????? ### #????? ???????????????????????? | | ??????????? # #?????? ???????????????????????? | | ???????????? ? #??????? ???????????????????????? | | ????????????????????????? ???????????????????????? | | ????????????????????????? ???????????????????????? | | ????????????????????????? ???????????????????????? | | ?????????????????????????????????????????????????? | | ?????????????????????????????????????????????????? | | ?????????????????????????????????????????????????? | | ?????????????????????????????????????????????????? | | ?????????????????????????????????????????????????? | | ?????????????????????????????????????????????????? | | ?????????????????????????????????????????????????? | | ?????????????????????????????????????????????????? | | ?????????????????????????????????????????????????? | +----------------------------------------------------+ Best States ------------- Heat Dissipation 38 Energy Generation 14 Energy Capacity 580 Matter Stores 300 Matter Capacity 300 Sight Range 16 Terrain Scan Density 60 Armor Coverage 450 Resistance: TH 10 Core Shielding 20 Evasion (%) 40 Recoil Reduction 2 Item Schematics ----------------- None Robot Schematics ------------------ None Fabricated ------------ Nothing Alien Tech Used ----------------- None Achievements -------------- None Challenges ------------ None Game ------ Seed SmartbombModifiedEdition Manual? 0 Play Time 00:23:43 Cumulative 143.3 hours Start 2020.12.16 @ 12:00:28 End 2020.12.16 @ 12:23:59 Sessions 1 Manual Loads 0 Difficulty Rogue Special Mode None Game No. 149 Rogue 142 Adventurer 0 Explorer 7 Win Type - Total 2 Types 0/0/2/0/0/0/0/0/0 Lore% 58 Gallery% 85 Achievement% 64 Wizard Run 0 Options --------- ASCII 0 Keyboard 0 Movement Mouse Keybinds 0 Fullscreen 1 Font 18/X11 Map View 76x50 Tactical HUD 1 Map Filters NONE Filters NONE Steam 1 RUN: 526a1308-7317-441f-9207-902a6bfa9422